Workbook

Sheet Лист1
A1: Школа | F1: Утвердил: | G1: должность
A2: Типовое примерное меню приготавливаемых блюд | G2: фамилия
A3: Возрастная категория | E3: 7-11 лет | G3: дата | H3: 14 | I3: 10 | J3: 2024
H4: день | I4: месяц | J4: год
A5: Неделя | B5: День недели | C5: Прием пищи | D5: Раздел меню | E5: Блюда | F5: Вес блюда, г | G5: Белки | H5: Жиры | I5: Углеводы | J5: Калорийность | K5: № рецептуры | L5: Цена
A6: 1 | B6: 1 | C6: Завтрак | D6: гор.блюдо | E6: Котлеты,биточки,шницели мясные рубленые школьные (рец.№ 3) | F6: 90 | G6: 11.7 | H6: 11.7 | I6: 10.8 | J6: 200.7 | K6: 311 | L6: 77.23
D7: гарнир | E7: Сложный гарнир (картофельное пюре с капустой тушеной) | F7: 180 | G7: 3.73 | H7: 6.84 | I7: 32.16 | J7: 157.19 | K7: 440 | L7: 47.02
D8: гор.напиток | E8: Чай | F8: 200 | G8: 0 | H8: 0 | I8: 9.1 | J8: 35 | K8: 2024-10-10 | L8: 6.35
D9: хлеб | E9: Хлеб пшеничный | F9: 40 | G9: 3.04 | H9: 0.32 | I9: 19.68 | J9: 93.2 | K9: 1 | L9: 2.75
D10: соус | E10: Соус томатный | F10: 25 | G10: 0.32 | H10: 0.92 | I10: 2.04 | J10: 36.76 | K10: 228 | L10: 3.91
D11: закуска
D12: хлеб черн. | E12: Хлеб ржаной | F12: 20 | G12: 1.32 | H12: 0.24 | I12: 6.68 | J12: 33 | K12: 2 | L12: 1.51
D13: итого | F13: =F12+F11+F10+F9+F8+F7+F6 -> 555 | G13: =G12+G11+G10+G9+G8+G7+G6 -> 20.11 | H13: 20.02 | I13: 80.46 | J13: 555.85 | L13: 138.77
A14: =A6 -> 1 | B14: =B6 -> 1 | C14: Обед | D14: закуска
D15: 1 блюдо
D16: 2 блюдо
D17: гарнир
D18: напиток
D19: хлеб бел.
D20: хлеб черн.
D23: итого | F23: =F22+F21+F20+F19+F18+F17+F16+F15+F14 -> 0 | G23: =G22+G21+G20+G19+G18+G17+G16+G15+G14 -> 0 | H23: 0 | I23: 0 | J23: 0 | L23: =L22+L21+L20+L19+L18+L17+L16+L15+L14 -> 0
A24: =A6 -> 1 | B24: =B6 -> 1 | C24: Итого за день: | F24: =F13+F23 -> 555 | G24: =G13+G23 -> 20.11 | H24: 20.02 | I24: 80.46 | J24: 555.85 | L24: =L13+L23 -> 138.77
A25: 1 | B25: 2 | C25: Завтрак | D25: гор.блюдо | E25: Кнели рыбные припущеные | F25: 100 | G25: 9.41 | H25: 1.4 | I25: 5.5 | J25: 89 | K25: 334 | L25: 61.19
D26: гарнир | E26: Каша гречневая рассыпчатая с овощами | F26: 150 | G26: 8.6 | H26: 6.8 | I26: 33.64 | J26: 215 | K26: 44/3 | L26: 18.97
D27: гор.напиток | E27: Компот из яблок с лимоном | F27: 200 | G27: 0.3 | H27: 0.2 | I27: 18.9 | J27: 103 | K27: 528 | L27: 20.09
D28: хлеб | E28: Хлеб пшеничный | F28: 40 | G28: 3.04 | H28: 0.32 | I28: 19.68 | J28: 93.2 | K28: 1 | L28: 2.75
D29: фрукты
D30: закуска | E30: Салат из отварного картофеля, морской капусты и репчатого лука с растительным маслом | F30: 60 | G30: 0.9 | H30: 9.4 | I30: 5.5 | J30: 63 | K30: 33/1 | L30: 18.05
D31: хлеб черн. | E31: Хлеб ржаной | F31: 20 | G31: 1.32 | H31: 0.24 | I31: 6.68 | J31: 33 | K31: 2 | L31: 1.51
D32: итого | F32: =F31+F30+F29+F28+F27+F26+F25 -> 570 | G32: =G31+G30+G29+G28+G27+G26+G25 -> 23.57 | H32: 18.36 | I32: 89.9 | J32: 596.2 | L32: 122.56
A33: =A25 -> 1 | B33: =B25 -> 2 | C33: Обед | D33: закуска
D34: 1 блюдо
D35: 2 блюдо
D36: гарнир
D37: напиток
D38: хлеб бел.
D39: хлеб черн.
D42: итого | F42: =F41+F40+F39+F38+F37+F36+F35+F34+F33 -> 0 | G42: =G41+G40+G39+G38+G37+G36+G35+G34+G33 -> 0 | H42: 0 | I42: 0 | J42: 0 | L42: 0
A43: =A25 -> 1 | B43: =B25 -> 2 | C43: Итого за день: | F43: =F32+F42 -> 570 | G43: =G32+G42 -> 23.57 | H43: =H32+H42 -> 18.36 | I43: =I32+I42 -> 89.9 | J43: =J32+J42 -> 596.2 | L43: 122.56
A44: 1 | B44: 3 | C44: Завтрак | D44: гор.блюдо | E44: Биточки (котлеты) из мяса кур | F44: 90 | G44: 11.38 | H44: 8.84 | I44: 14.92 | J44: 208.95 | K44: 2024-09-05 | L44: 54.96
D45: гарнир | E45: Макаронные изделия отварные | F45: 180 | G45: 6.64 | H45: 5.02 | I45: 37.17 | J45: 206.49 | K45: 43/3 | L45: 20.46
D46: гор.напиток | E46: Чай с лимоном | F46: 200 | G46: 0.1 | H46: 0 | I46: 9.2 | J46: 36 | K46: 2024-10-11 | L46: 9.81
D47: хлеб | E47: Хлеб пшеничный | F47: 40 | G47: 3.04 | H47: 0.32 | I47: 19.68 | J47: 93.2 | K47: 1 | L47: 2.75
D48: фрукты
D49: закуска | E49: Горошек зеленый | F49: 60 | G49: 1.86 | H49: 2.22 | I49: 3.84 | J49: 43.2 | L49: 26
D50: хлеб черн. | E50: Хлеб ржаной | F50: 20 | G50: 1.32 | H50: 0.24 | I50: 6.68 | J50: 33 | K50: 2 | L50: 1.51
D51: итого | F51: =F50+F49+F48+F47+F46+F45+F44 -> 590 | G51: =G50+G49+G48+G47+G46+G45+G44 -> 24.34 | H51: 16.64 | I51: 91.49 | J51: 620.84 | L51: 115.49
A52: =A44 -> 1 | B52: =B44 -> 3 | C52: Обед | D52: закуска
D53: 1 блюдо
D54: 2 блюдо
D55: гарнир
D56: напиток
D57: хлеб бел.
D58: хлеб черн.
D61: итого | F61: =F60+F59+F58+F57+F56+F55+F54+F53+F52 -> 0 | G61: =G60+G59+G58+G57+G56+G55+G54+G53+G52 -> 0 | H61: 0 | I61: 0 | J61: 0 | L61: 0
A62: =A44 -> 1 | B62: =B44 -> 3 | C62: Итого за день: | F62: =F51+F61 -> 590 | G62: =G51+G61 -> 24.34 | H62: =H51+H61 -> 16.64 | I62: =I51+I61 -> 91.49 | J62: =J51+J61 -> 620.84 | L62: 115.49
A63: 1 | B63: 4 | C63: Завтрак | D63: гор.блюдо | E63: Плов из свинины | F63: 240 | G63: 19.18 | H63: 21.2 | I63: 41.42 | J63: 352.2 | K63: 1900-09-21 | L63: 73.82
D64: гарнир
D65: гор.напиток | E65: Кисель из концентрата плодового или ягодного | F65: 200 | G65: 1.4 | H65: 0 | I65: 29 | J65: 122 | K65: 516 | L65: 6.86
D66: хлеб | E66: Хлеб пшеничный | F66: 40 | G66: 3.04 | H66: 0.32 | I66: 19.68 | J66: 93.2 | K66: 1 | L66: 2.75
D67: фрукты
D68: закуска | E68: Салат изотварной свеклы с чеснокомс растительным маслом | F68: 60 | G68: 1 | H68: 4.25 | I68: 5.1 | J68: 62.12 | K68: 1900-01-18 | L68: 7.54
D69: хлеб черн. | E69: Хлеб ржаной | F69: 20 | G69: 1.32 | H69: 0.24 | I69: 6.68 | J69: 33 | K69: 2 | L69: 1.51
D70: итого | F70: =F69+F68+F67+F66+F65+F64+F63 -> 560 | G70: =G69+G68+G67+G66+G65+G64+G63 -> 25.94 | H70: 26.01 | I70: 101.88 | J70: 662.52 | L70: 92.48
A71: =A63 -> 1 | B71: =B63 -> 4 | C71: Обед | D71: закуска
D72: 1 блюдо
D73: 2 блюдо
D74: гарнир
D75: напиток
D76: хлеб бел.
D77: хлеб черн.
D80: итого | F80: =F79+F78+F77+F76+F75+F74+F73+F72+F71 -> 0 | G80: =G79+G78+G77+G76+G75+G74+G73+G72+G71 -> 0 | H80: 0 | I80: 0 | J80: 0 | L80: 0
A81: =A63 -> 1 | B81: =B63 -> 4 | C81: Итого за день: | F81: =F70+F80 -> 560 | G81: =G70+G80 -> 25.94 | H81: =H70+H80 -> 26.01 | I81: =I70+I80 -> 101.88 | J81: =J70+J80 -> 662.52 | L81: 92.48
A82: 1 | B82: 5 | C82: Завтрак | D82: гор.блюдо | E82: Гуляш из мяса отварного (свинина) | F82: 90 | G82: 10.2 | H82: 10.68 | I82: 2.97 | J82: 144.7 | K82: 299 | L82: 82.76
D83: гарнир | E83: Пюре картофельное | F83: 150 | G83: 3.29 | H83: 4.92 | I83: 21.81 | J83: 145.06 | K83: 362 | L83: 33.43
D84: гор.напиток | E84: Напиток лимонный | F84: 150 | G84: 0.06 | H84: 0 | I84: 18.18 | J84: 74.31 | K84: 436 | L84: 9.66
D85: хлеб | E85: Хлеб пшеничный | F85: 40 | G85: 3.04 | H85: 0.32 | I85: 19.68 | J85: 93.2 | K85: 1 | L85: 2.75
D86: фрукты
D87: закуска | E87: Салат из квашеной капусты | F87: 60 | G87: 0.96 | H87: 6.06 | I87: 1.8 | J87: 65.4 | K87: 17 | L87: 25.67
D88: хлеб черн. | E88: Хлеб ржаной | F88: 20 | G88: 1.32 | H88: 0.24 | I88: 6.68 | J88: 33 | K88: 2 | L88: 1.51
D89: итого | F89: =F88+F87+F86+F85+F84+F83+F82 -> 510 | G89: =SUM(G82:G88) -> 18.87 | H89: =SUM(H82:H88) -> 22.22 | I89: =SUM(I82:I88) -> 71.12 | J89: =SUM(J82:J88) -> 555.67 | L89: =L88+L87+L86+L85+L84+L83+L82 -> 155.78
A90: =A82 -> 1 | B90: =B82 -> 5 | C90: Обед | D90: закуска
D91: 1 блюдо
D92: 2 блюдо
D93: гарнир
D94: напиток
D95: хлеб бел.
D96: хлеб черн.
D99: итого | F99: =F98+F97+F96+F95+F94+F93+F92+F91+F90 -> 0 | G99: =SUM(G90:G98) -> 0 | H99: =SUM(H90:H98) -> 0 | I99: =SUM(I90:I98) -> 0 | J99: =SUM(J90:J98) -> 0 | L99: =L98+L97+L96+L95+L94+L93+L92+L91+L90 -> 0
A100: =A82 -> 1 | B100: =B82 -> 5 | C100: Итого за день: | F100: =F89+F99 -> 510 | G100: =G89+G99 -> 18.87 | H100: =H89+H99 -> 22.22 | I100: =I89+I99 -> 71.12 | J100: =J89+J99 -> 555.67 | L100: 155.78
A101: 2 | B101: 1 | C101: Завтрак | D101: гор.блюдо | E101: Курица в соусе томатном | F101: 100 | G101: 11.25 | H101: 11.25 | I101: 3.42 | J101: 126.18 | K101: 405 | L101: 104.96
D102: гарнир | E102: Сложный гарнир (рис отварной,овощи тушеные) | F102: 150 | G102: 3.26 | H102: 7.79 | I102: 29.13 | J102: 164.39 | K102: 60 | L102: 23
D103: гор.напиток | E103: Напиток с витаминами "Витошка" для детей дошкольного и школьного возраста | F103: 200 | G103: 0 | H103: 0 | I103: 19.4 | J103: 78 | K103: 507 | L103: 10.14
D104: хлеб | E104: Хлеб пшеничный | F104: 40 | G104: 3.04 | H104: 0.32 | I104: 19.68 | J104: 93.2 | K104: 1 | L104: 2.75
D105: фрукты
D106: закуска | E106: Помидоры свежие(нарезка) | F106: 60 | G106: 0.65 | H106: 0.12 | I106: 2.23 | J106: 58.21 | K106: 9 | L106: 21.33
D107: хлеб черн. | E107: Хлеб ржаной | F107: 20 | G107: 1.32 | H107: 0.24 | I107: 6.68 | J107: 33 | K107: 2 | L107: 1.51
D108: итого | F108: =F107+F106+F105+F104+F103+F102+F101 -> 570 | G108: =G107+G106+G105+G104+G103+G102+G101 -> 19.52 | H108: 19.72 | I108: 80.54 | J108: 552.98 | L108: =L107+L106+L105+L104+L103+L102+L101 -> 163.69
A109: =A101 -> 2 | B109: =B101 -> 1 | C109: Обед | D109: закуска
D110: 1 блюдо
D111: 2 блюдо
D112: гарнир
D113: напиток
D114: хлеб бел.
D115: хлеб черн.
D118: итого | F118: =F117+F116+F115+F114+F113+F112+F111+F109+F110 -> 0 | G118: =G117+G116+G115+G114+G113+G112+G111+G109+G110 -> 0 | H118: 0 | I118: 0 | J118: 0 | L118: 0
A119: =A101 -> 2 | B119: =B101 -> 1 | C119: Итого за день: | F119: =F108+F118 -> 570 | G119: =G108+G118 -> 19.52 | H119: =H108+H118 -> 19.72 | I119: =I108+I118 -> 80.54 | J119: =J108+J118 -> 552.98 | L119: 163.69
A120: 2 | B120: 2 | C120: Завтрак | D120: гор.блюдо | E120: Жаркое по-домашнему из свинины | F120: 240 | G120: 16.87 | H120: 60.46 | I120: 52.31 | J120: 433.85 | K120: 259 | L120: 163.58
D121: гарнир
D122: гор.напиток | E122: Чай с лимоном | F122: 200 | G122: 0.1 | H122: 0 | I122: 9.2 | J122: 36 | K122: 2024-10-11 | L122: 8.81
D123: хлеб | E123: Хлеб пшеничный | F123: 40 | G123: 3.04 | H123: 0.32 | I123: 19.68 | J123: 93.2 | K123: 1 | L123: 2.75
D124: фрукты
D125: закуска | E125: Огурец соленый | F125: 60 | G125: 0.38 | H125: 0.05 | I125: 0.82 | J125: 6.24 | K125: 10 | L125: 17.34
D126: хлеб черн. | E126: Хлеб ржаной | F126: 20 | G126: 1.32 | H126: 0.24 | I126: 6.68 | J126: 33 | K126: 2 | L126: 1.51
D127: итого | F127: =F126+F125+F124+F123+F122+F121+F120 -> 560 | G127: =SUM(G120:G126) -> 21.71 | H127: 61.07 | I127: 88.69 | J127: 602.29 | L127: =L126+L125+L124+L123+L122+L121+L120 -> 193.99
A128: =A120 -> 2 | B128: =B120 -> 2 | C128: Обед | D128: закуска
D129: 1 блюдо
D130: 2 блюдо
D131: гарнир
D132: напиток
D133: хлеб бел.
D134: хлеб черн.
D137: итого | F137: =F136+F135+F134+F133+F132+F131+F130+F129+F128 -> 0 | G137: =SUM(G128:G136) -> 0 | H137: 0 | I137: 0 | J137: 0 | L137: =L136+L135+L134+L133+L132+L131+L130+L129+L128 -> 0
A138: =A120 -> 2 | B138: =B120 -> 2 | C138: Итого за день: | F138: =F127+F137 -> 560 | G138: =G127+G137 -> 21.71 | H138: =H127+H137 -> 61.07 | I138: =I127+I137 -> 88.69 | J138: =J127+J137 -> 602.29 | L138: 193.99
A139: 2 | B139: 3 | C139: Завтрак | D139: гор.блюдо | E139: Птица или кролик отварные | F139: 100 | G139: 6.6 | H139: 8.98 | I139: 1.02 | J139: 124.92 | K139: 300 | L139: 61.51
D140: гарнир | E140: Макаронные изделия отварные | F140: 180 | G140: 6.64 | H140: 5.02 | I140: 26.17 | J140: 97.66 | K140: 43.3 | L140: 20.46
D141: гор.напиток | E141: Компот из свежих плодов (черешня,вишня,слива,персики или абрикосы) | F141: 200 | G141: 0.44 | H141: 0.16 | I141: 18.2 | J141: 116.6 | K141: 342 | L141: 18.79
D142: хлеб | E142: Хлеб пшеничный | F142: 40 | G142: 3.04 | H142: 0.32 | I142: 19.68 | J142: 93.2 | K142: 1 | L142: 2.75
D143: фрукты
D144: закуска | E144: Салат из отварного картофеля с зеленым луком и растительным маслом | F144: 60 | G144: 1.1 | H144: 5.1 | I144: 7.4 | J144: 81 | K144: 34/1 | L144: 18.68
D145: хлеб черн. | E145: Хлеб ржаной | F145: 20 | G145: 1.32 | H145: 0.24 | I145: 6.68 | J145: 33 | K145: 2 | L145: 1.51
D146: итого | F146: =F145+F144+F143+F142+F141+F140+F139 -> 600 | G146: =SUM(G139:G145) -> 19.14 | H146: 19.82 | I146: 79.15 | J146: 546.38 | L146: =L145+L144+L143+L142+L141+L140+L139 -> 123.7
A147: =A139 -> 2 | B147: =B139 -> 3 | C147: Обед | D147: закуска
D148: 1 блюдо
D149: 2 блюдо
D150: гарнир
D151: напиток
D152: хлеб бел.
D153: хлеб черн.
D156: итого | F156: =F155+F154+F153+F152+F151+F150+F149+F148+F147 -> 0 | G156: =SUM(G147:G155) -> 0 | H156: 0 | I156: 0 | J156: 0 | L156: =L155+L154+L153+L152+L151+L150+L149+L148+L147 -> 0
A157: =A139 -> 2 | B157: =B139 -> 3 | C157: Итого за день: | F157: =F146+F156 -> 600 | G157: =G146+G156 -> 19.14 | H157: =H146+H156 -> 19.82 | I157: =I146+I156 -> 79.15 | J157: =J146+J156 -> 546.38 | L157: 123.7
A158: 2 | B158: 4 | C158: Завтрак | D158: гор.блюдо | E158: Пудинг из творога | F158: 150 | G158: 2024-04-09 | H158: 11.76 | I158: 44.57 | J158: 309.75 | K158: 2024-05-17 | L158: 74.46
D159: гарнир | E159: Молоко сгущеное | F159: 20 | G159: 1.4 | H159: 1.58 | I159: 1.9 | J159: 27 | K159: 1900-01-10 | L159: 14.74
D160: гор.напиток | E160: Кофейный напиток с молоком | F160: 200 | G160: 3 | H160: 2.9 | I160: 13.4 | J160: 89 | K160: 2024-10-13 | L160: 14.17
D161: хлеб | E161: Хлеб пшеничный | F161: 40 | G161: 3.04 | H161: 0.32 | I161: 19.68 | J161: 93.2 | K161: 1 | L161: 2.75
D162: фрукты
D163: закуска
D164: хлеб черн. | E164: Хлеб ржаной | F164: 20 | G164: 1.32 | H164: 0.24 | I164: 6.68 | J164: 33 | K164: 2 | L164: 1.51
D165: итого | F165: =F164+F163+F162+F161+F160+F159+F158 -> 430 | G165: =SUM(G158:G164) -> 45399.76 | H165: 16.8 | I165: 86.23 | J165: 551.95 | L165: =SUM(L158:L164) -> 107.63
A166: =A158 -> 2 | B166: =B158 -> 4 | C166: Обед | D166: закуска
D167: 1 блюдо
D168: 2 блюдо
D169: гарнир
D170: напиток
D171: хлеб бел.
D172: хлеб черн.
D175: итого | F175: =F174+F173+F172+F171+F170+F169+F168+F167+F166 -> 0 | G175: =SUM(G166:G174) -> 0 | H175: 0 | I175: 0 | J175: 0 | L175: =L174+L173+L172+L171+L170+L169+L168+L167+L166 -> 0
A176: =A158 -> 2 | B176: =B158 -> 4 | C176: Итого за день: | F176: =F165+F175 -> 430 | G176: =G165+G175 -> 45399.76 | H176: =H165+H175 -> 16.8 | I176: =I165+I175 -> 86.23 | J176: =J165+J175 -> 551.95 | L176: 107.63
A177: 2 | B177: 5 | C177: Завтрак | D177: гор.блюдо | E177: Шницель натуральный рубленый | F177: 90 | G177: 12.69 | H177: 19.7 | I177: 9.09 | J177: 172.29 | K177: 304 | L177: 66.68
D178: гарнир | E178: Рис отварной | F178: 150 | G178: 3.71 | H178: 3.4 | I178: 37.09 | J178: 197 | K178: 45/3 | L178: 19
D179: гор.напиток
D180: хлеб | E180: Хлеб пшеничный | F180: 40 | G180: 3.04 | H180: 0.32 | I180: 19.68 | J180: 93.2 | K180: 1 | L180: 2.75
D181: соусы | E181: Соус томатный | F181: 25 | G181: 0.32 | H181: 0.92 | I181: 2.04 | J181: 16.76 | K181: 228 | L181: 2.35
D182: закуска | E182: Салат из белокачанной капусты с морковью и растительным маслом | F182: 60 | G182: 1 | H182: 4 | I182: 5.9 | J182: 63 | K182: 2024-01-05 | L182: 37.21
D183: хлеб черн. | E183: Хлеб ржаной | F183: 20 | G183: 1.32 | H183: 0.24 | I183: 6.68 | J183: 33 | K183: 2 | L183: 1.51
D184: итого | F184: =F183+F182+F181+F180+F179+F178+F177 -> 385 | G184: =SUM(G177:G183) -> 22.08 | H184: 28.58 | I184: 80.48 | J184: 575.25 | L184: =SUM(L177:L183) -> 129.5
A185: =A177 -> 2 | B185: =B177 -> 5 | C185: Обед | D185: закуска
D186: 1 блюдо
D187: 2 блюдо
D188: гарнир
D189: напиток
D190: хлеб бел.
D191: хлеб черн.
D194: итого | F194: =F193+F192+F191+F190+F188+F189+F187+F186+F185 -> 0 | G194: =SUM(G185:G193) -> 0 | H194: 0 | I194: 0 | J194: 0 | L194: =L193+L192+L191+L190+L188+L189+L187+L186+L185 -> 0
A195: =A177 -> 2 | B195: =B177 -> 5 | C195: Итого за день: | F195: =F184+F194 -> 385 | G195: =G184+G194 -> 22.08 | H195: =H184+H194 -> 28.58 | I195: =I184+I194 -> 80.48 | J195: =J184+J194 -> 575.25 | L195: 129.5
C196: Среднее значение за период: | F196: =(F24+F43+F62+F81+F100+F119+F138+F157+F176+F195)/(IF(F24=0,0,1)+IF(F43=0,0,1)+IF(F62=0,0,1)+IF(F81=0,0,1)+IF(F100=0,0,1)+IF(F119=0,0,1)+IF(F138=0,0,1)+IF(F157=0,0,1)+IF(F176=0,0,1)+IF(F195=0,0,1)) -> 533 | G196: =(G24+G43+G62+G81+G100+G119+G138+G157+G176+G195)/(IF(G24=0,0,1)+IF(G43=0,0,1)+IF(G62=0,0,1)+IF(G81=0,0,1)+IF(G100=0,0,1)+IF(G119=0,0,1)+IF(G138=0,0,1)+IF(G157=0,0,1)+IF(G176=0,0,1)+IF(G195=0,0,1)) -> 4559.504 | H196: 24.924 | I196: 84.994 | J196: 581.993 | L196: =(L24+L43+L62+L81+L100+L119+L138+L157+L176+L195)/(IF(L24=0,0,1)+IF(L43=0,0,1)+IF(L62=0,0,1)+IF(L81=0,0,1)+IF(L100=0,0,1)+IF(L119=0,0,1)+IF(L138=0,0,1)+IF(L157=0,0,1)+IF(L176=0,0,1)+IF(L195=0,0,1)) -> 134.359
